bitfinex/quotes_BTCUSD_20250714
["timestamp","ask_amount","ask_price","bid_price","bid_amount"]
[1752512682255,0.37058416,120390.0,120380.0,0.03731]
[1752512683140,0.73077324,120390.0,120380.0,4e-05]
[1752512683357,0.79609171,120390.0,120380.0,4e-05]
[1752512683571,0.87275409,120390.0,120380.0,4e-05]
[1752512683783,1.27275409,120390.0,120380.0,4e-05]
[1752512684937,1.22771324,120390.0,120380.0,4e-05]
[1752512685149,1.19551324,120390.0,120380.0,0.00314]
[1752512687101,1.19551324,120390.0,120380.0,0.00521]
[1752512687974,1.06807324,120390.0,120380.0,0.03551]
[1752512688158,1.19551324,120390.0,120380.0,0.03551]
[1752512688372,0.24314416,120390.0,120380.0,0.03551]
[1752512688588,0.79547324,120390.0,120380.0,0.03551]
[1752512689246,0.79547324,120390.0,120380.0,0.00521]
[1752512691082,0.79547324,120390.0,120380.0,0.03521]
[1752512691293,0.66807324,120390.0,120380.0,0.03521]
[1752512691515,0.79547324,120390.0,120380.0,0.03521]
[1752512692910,0.37054416,120390.0,120380.0,0.03521]
[1752512693135,0.79547324,120390.0,120380.0,0.03521]
[1752512693579,0.66807324,120390.0,120380.0,0.03521]
[1752512693856,0.27265121,120390.0,120380.0,0.24265743]
[1752512694077,0.26434543,120390.0,120380.0,0.25096439]
[1752512694323,0.27265128,120390.0,120380.0,0.25927114]
[1752512694544,0.22535888,120390.0,120380.0,0.69250676]
[1752512694763,0.09795888,120390.0,120380.0,0.69250676]
[1752512694979,0.22535902,120390.0,120380.0,0.69250676]
[1752512695198,0.22535895,120390.0,120380.0,0.69250676]
[1752512695621,0.23366508,120390.0,120380.0,0.69250676]
[1752512696089,0.10626508,120390.0,120380.0,0.69250676]
[1752512696306,0.23366508,120390.0,120380.0,0.69250676]
[1752512696509,0.1274,120390.0,120380.0,0.69250676]
[1752512696719,0.13570578,120390.0,120380.0,0.69250676]
[1752512696930,0.1274,120390.0,120380.0,0.69250676]
[1752512697138,0.13570571,120390.0,120380.0,0.69250676]
[1752512697353,0.39979203,120390.0,120380.0,0.06821]
[1752512697565,0.39979203,120390.0,120380.0,0.2426575]
[1752512697768,0.39979203,120390.0,120380.0,0.07651702]
[1752512697980,0.39979203,120390.0,120380.0,0.06821]
[1752512698194,0.39979203,120390.0,120380.0,0.24265743]
[1752512698402,0.39979203,120390.0,120380.0,0.25096425]
[1752512698609,0.39979203,120390.0,120380.0,0.24265743]
[1752512698831,0.39979203,120390.0,120380.0,0.07651702]
[1752512699027,0.39979203,120390.0,120380.0,0.06821]
[1752512699254,0.40809836,120390.0,120380.0,0.2426575]
[1752512699464,0.40809836,120390.0,120380.0,0.06821]
[1752512700147,0.27239251,120390.0,120380.0,0.06821]
[1752512700351,0.39979251,120390.0,120380.0,0.06821]
[1752512701008,0.39148645,120390.0,120380.0,0.06821]
[1752512701225,0.81641553,120390.0,120380.0,0.03521]
[1752512701452,0.39148645,120390.0,120380.0,0.03521]
[1752512703002,0.68901553,120390.0,120380.0,4e-05]
[1752512703227,0.87801553,120390.0,120380.0,4e-05]
[1752512704580,0.75061553,120390.0,120380.0,4e-05]
[1752512704794,0.87801553,120390.0,120380.0,4e-05]
[1752512706149,0.32568645,120390.0,120380.0,4e-05]
[1752512706367,0.87801553,120390.0,120380.0,4e-05]
[1752512706853,0.75061553,120390.0,120380.0,4e-05]
[1752512707065,0.87801553,120390.0,120380.0,4e-05]
[1752512707252,0.32568645,120390.0,120380.0,4e-05]
[1752512707479,0.87801553,120390.0,120380.0,4e-05]
[1752512709000,0.81641553,120390.0,120380.0,0.00312]
[1752512709211,0.84871553,120390.0,120380.0,0.00312]
[1752512709424,0.84871553,120390.0,120380.0,4e-05]
[1752512709850,0.72131553,120390.0,120380.0,4e-05]
[1752512710112,0.84871553,120390.0,120380.0,4e-05]
[1752512711430,0.72131553,120390.0,120380.0,4e-05]
[1752512711647,0.42378645,120390.0,120380.0,4e-05]
[1752512711872,0.39148645,120390.0,120380.0,4e-05]
[1752512712101,0.42168645,120390.0,120380.0,4e-05]
[1752512712316,0.29428645,120390.0,120380.0,4e-05]
[1752512712531,0.42168645,120390.0,120380.0,4e-05]
[1752512713425,0.29428645,120390.0,120380.0,4e-05]
[1752512713640,0.42168645,120390.0,120380.0,4e-05]
[1752512713831,0.39148645,120390.0,120380.0,4e-05]
[1752512714043,0.26408645,120390.0,120380.0,0.00312]
[1752512714271,0.39148645,120390.0,120380.0,0.00312]
[1752512715902,0.26408645,120390.0,120380.0,4e-05]
[1752512716117,0.42388645,120390.0,120380.0,4e-05]
[1752512716348,0.87891553,120390.0,120380.0,4e-05]
[1752512716565,0.45398645,120390.0,120380.0,4e-05]
[1752512716790,0.82889483,120390.0,120380.0,4e-05]
[1752512717011,0.95629483,120390.0,120380.0,4e-05]
[1752512717228,0.89345638,120390.0,120380.0,4e-05]
[1752512718092,0.85958313,120390.0,120380.0,4e-05]
[1752512718510,1.25958313,120390.0,120380.0,4e-05]
[1752512718967,1.24789425,120390.0,120380.0,4e-05]
[1752512719183,1.79661159,120390.0,120380.0,4e-05]
[1752512719654,1.79761159,120390.0,120380.0,4e-05]
[1752512721922,1.73190047,120390.0,120380.0,4e-05]
[1752512723736,1.20450047,120390.0,120380.0,4e-05]
[1752512723969,1.33190047,120390.0,120380.0,4e-05]
[1752512724438,1.88190047,120390.0,120380.0,4e-05]
[1752512724694,1.42021159,120390.0,120380.0,4e-05]
[1752512724924,1.55093559,120390.0,120380.0,4e-05]
[1752512725390,0.60774394,120340.0,120330.0,0.00308]
[1752512725629,0.39156197,120340.0,120330.0,0.00359366]
[1752512725860,0.39156197,120340.0,120330.0,0.00051366]
[1752512726111,0.84749105,120340.0,120330.0,0.00051366]
[1752512726336,0.81649105,120340.0,120330.0,0.00051366]
[1752512726560,0.81649105,120340.0,120330.0,0.00559366]
[1752512726811,0.39156197,120340.0,120330.0,0.00359366]
[1752512727292,0.26416197,120340.0,120330.0,0.00459366]
[1752512727512,0.39156197,120340.0,120330.0,0.00656366]
[1752512727973,0.39156197,120340.0,120330.0,0.03986366]
[1752512728425,0.37162723,120340.0,120330.0,0.05510871]
[1752512728882,0.38824632,120340.0,120330.0,0.05510871]
[1752512729103,0.8131754,120340.0,120330.0,0.01675871]
[1752512729330,0.81383359,120340.0,120330.0,0.01675871]
[1752512729554,0.89261625,120340.0,120330.0,0.01675871]
[1752512730419,0.89361625,120340.0,120330.0,0.01575871]
[1752512730630,0.89361625,120340.0,120330.0,0.01675871]
[1752512730845,0.90199375,120340.0,120330.0,0.01675871]
[1752512731536,0.34966467,120340.0,120330.0,0.01675871]
[1752512731750,0.90199375,120340.0,120330.0,0.01675871]
[1752512732186,0.86929375,120340.0,120330.0,0.01675871]
[1752512732855,0.74189375,120340.0,120330.0,0.01675871]
[1752512733046,0.86929375,120340.0,120330.0,0.01675871]
[1752512734105,0.86929375,120340.0,120330.0,0.01674666]
[1752512734571,0.44436467,120340.0,120330.0,0.01674666]
[1752512734792,0.86929375,120340.0,120330.0,0.01674666]
[1752512737600,0.44436467,120340.0,120330.0,0.01674666]
[1752512737787,0.86929375,120340.0,120330.0,0.01674666]
[1752512742989,0.86091625,120340.0,120330.0,0.01675168]
[1752512743586,0.30858717,120340.0,120330.0,0.01675168]
[1752512743805,0.26184632,120340.0,120330.0,0.51075076]
[1752512744015,0.26184632,120340.0,120330.0,0.08582168]
[1752512744222,0.38752532,120340.0,120330.0,0.08582168]
[1752512745291,0.26012532,120340.0,120330.0,0.08582168]
[1752512745506,0.38752532,120340.0,120330.0,0.08582168]
[1752512745937,0.26012532,120340.0,120330.0,0.08582168]
[1752512746159,0.38752532,120340.0,120330.0,0.08582168]
[1752512746832,0.37927901,120340.0,120330.0,0.08582168]
[1752512750064,0.37927901,120340.0,120330.0,0.07058366]
[1752512750279,0.37927901,120340.0,120330.0,0.0858528]
[1752512751815,0.37927901,120340.0,120330.0,0.08586585]
[1752512753538,0.37927901,120340.0,120330.0,0.08842585]
[1752512754354,0.25187901,120340.0,120330.0,0.52166534]
[1752512754561,0.28178098,120340.0,120330.0,0.69618527]
[1752512754769,0.40918098,120340.0,120330.0,0.69752355]
[1752512754977,0.40918098,120340.0,120330.0,0.70583368]
[1752512755151,0.28178098,120340.0,120330.0,0.70583368]
[1752512755355,0.40918098,120340.0,120330.0,0.69752327]
[1752512756428,0.10727543,120340.0,120330.0,0.70583333]
[1752512756634,0.001,120340.0,120330.0,1.04583298]
[1752512756837,0.00930916,120340.0,120330.0,1.0125928]
[1752512757038,0.30290493,120340.0,120330.0,0.59597413]
[1752512757248,0.30190493,120340.0,120330.0,1.02921355]
[1752512757621,0.31021416,120340.0,120330.0,1.0125928]
[1752512757931,0.19112353,120340.0,120330.0,0.84538321]
[1752512758192,0.30190493,120340.0,120330.0,1.03652368]
[1752512758387,0.30190493,120340.0,120330.0,0.6032844]
[1752512758591,0.30190493,120340.0,120330.0,1.02821348]
[1752512758737,0.30190493,120340.0,120330.0,1.03121348]
[1752512758938,0.30190493,120340.0,120330.0,1.0145928]
[1752512759149,0.3102143,120340.0,120330.0,0.84838321]
[1752512759348,0.29359577,120340.0,120330.0,1.02290321]
[1752512759787,0.29359577,120340.0,120330.0,1.02690321]
[1752512759997,0.301905,120340.0,120330.0,1.03521355]
[1752512760212,0.29359577,120340.0,120330.0,1.03521355]
[1752512760406,0.301905,120340.0,120330.0,1.03521355]
[1752512760795,0.301905,120340.0,120330.0,1.02690321]
[1752512761376,0.31021437,120340.0,120330.0,0.85238321]
[1752512761546,0.301905,120340.0,120330.0,1.02690314]
[1752512761735,0.31021437,120340.0,120330.0,1.02690321]
[1752512761943,0.31852388,120340.0,120330.0,0.84407274]
[1752512762377,0.31852395,120340.0,120330.0,0.84407274]
[1752512762504,0.301905,120340.0,120330.0,1.02690301]
[1752512762716,0.16619577,120340.0,120330.0,1.03521321]
[1752512762913,0.29355577,120340.0,120330.0,1.02690301]
[1752512763269,0.301865,120340.0,120330.0,1.02690301]
[1752512763696,0.31017437,120340.0,120330.0,1.01859274]
[1752512763843,0.301865,120340.0,120330.0,1.01859274]
[1752512764042,0.3101743,120340.0,120330.0,1.01859274]
[1752512764246,0.16619577,120340.0,120330.0,1.02690301]
[1752512764478,0.29355577,120340.0,120330.0,1.03521321]
[1752512764658,0.30186507,120340.0,120330.0,1.01859274]
[1752512764843,0.301865,120340.0,120330.0,1.02690301]
[1752512765220,0.31017437,120340.0,120330.0,1.01859274]
[1752512765423,0.301865,120340.0,120330.0,1.02690308]
[1752512765629,0.301865,120340.0,120330.0,1.03521335]
[1752512766612,0.16619577,120340.0,120330.0,1.05183368]
[1752512766821,0.29355577,120340.0,120330.0,1.04352327]
[1752512767048,0.29355577,120340.0,120330.0,1.05183333]
[1752512767260,0.29355577,120340.0,120330.0,1.04352299]
[1752512767689,0.29311535,120340.0,120330.0,1.03521293]
[1752512768332,0.29311535,120340.0,120330.0,1.04352299]
[1752512768548,0.29311535,120340.0,120330.0,1.03521293]
[1752512768778,0.30973402,120340.0,120330.0,1.0185928]
[1752512768956,0.30142458,120340.0,120330.0,1.01028233]
[1752512769206,0.17406458,120340.0,120330.0,1.02690301]
[1752512769433,0.30142458,120340.0,120330.0,1.02690301]
[1752512769645,0.30142451,120340.0,120330.0,1.02690301]
[1752512770806,0.30142451,120340.0,120330.0,1.03521321]
[1752512770991,0.30142451,120340.0,120330.0,1.01859274]
[1752512771222,0.30142451,120340.0,120330.0,1.02690308]
[1752512771425,0.17406451,120340.0,120330.0,1.03521328]
[1752512771630,0.29307535,120340.0,120330.0,1.03521335]
[1752512771836,0.30138451,120340.0,120330.0,1.02690308]
[1752512771953,0.30138451,120340.0,120330.0,1.03521335]
[1752512772149,0.30969374,120340.0,120330.0,1.03521335]
[1752512772365,0.29307535,120340.0,120330.0,1.04352355]
[1752512772588,0.29307535,120340.0,120330.0,1.05183368]
[1752512773001,0.30181131,120350.0,120340.0,0.56630555]
[1752512773214,0.39977592,120350.0,120340.0,0.82196908]
[1752512773656,0.28076488,120350.0,120340.0,0.84691181]
[1752512774169,0.40808488,120350.0,120340.0,0.84891181]
[1752512774391,0.40808488,120350.0,120340.0,0.85191181]
[1752512775018,0.39977592,120350.0,120340.0,0.85191181]
[1752512775225,0.40808481,120350.0,120340.0,0.85191181]
[1752512775644,0.41639377,120350.0,120340.0,0.85191181]
[1752512776299,0.26414703,120350.0,120340.0,0.85191181]
[1752512776518,0.40808474,120350.0,120340.0,0.85191181]
[1752512777116,0.39977661,120350.0,120340.0,0.85191181]
[1752512778237,0.39146759,120350.0,120340.0,1.02641729]
[1752512778475,0.39146717,120350.0,120340.0,1.03472694]
[1752512778694,0.39977599,120350.0,120340.0,1.04303652]
[1752512778910,0.39977599,120350.0,120340.0,1.03472694]
[1752512779146,0.40808495,120350.0,120340.0,1.02641729]
[1752512779353,0.40808495,120350.0,120340.0,0.86022152]
[1752512779561,0.41639397,120350.0,120340.0,0.86022159]
[1752512779772,0.41639397,120350.0,120340.0,0.85191181]
[1752512779971,0.41639397,120350.0,120340.0,0.86022159]
[1752512780199,0.41639397,120350.0,120340.0,1.02641736]
[1752512780200,0.40808495,120350.0,120340.0,1.02641736]
[1752512780450,0.39977599,120350.0,120340.0,1.03472707]
[1752512780664,0.40808488,120350.0,120340.0,1.04303672]
[1752512780874,0.40808488,120350.0,120340.0,1.03472707]
[1752512781142,0.40808488,120350.0,120340.0,1.04303672]
[1752512781353,0.40808488,120350.0,120340.0,1.0513463]
[1752512781568,0.39146724,120350.0,120340.0,1.0513463]
[1752512781799,0.39977585,120350.0,120340.0,1.04303672]
[1752512782008,0.39977585,120350.0,120340.0,1.05965581]
[1752512782440,0.39977585,120350.0,120340.0,1.05965547]
[1752512782657,0.19111633,120360.0,120350.0,0.051]
[1752512782880,0.39978392,120360.0,120350.0,0.47804908]
[1752512783094,0.39978392,120360.0,120350.0,0.48116908]
[1752512783970,0.39147579,120360.0,120350.0,0.48216908]
[1752512784413,0.38316759,120360.0,120350.0,0.00624]
[1752512784635,0.85749667,120360.0,120350.0,0.001]
[1752512785589,0.73017667,120360.0,120350.0,0.001]
[1752512785829,0.87199752,120360.0,120350.0,0.001]
[1752512786064,0.95331486,120360.0,120350.0,0.001]
[1752512786300,0.87199752,120360.0,120350.0,0.001]
[1752512786539,0.87199752,120360.0,120350.0,0.01829977]
[1752512786772,0.74471752,120360.0,120350.0,0.01529977]
[1752512786969,0.86302921,120360.0,120350.0,0.01529977]
[1752512787248,0.43810013,120360.0,120350.0,0.01529977]
[1752512787471,0.43910013,120360.0,120350.0,0.01529977]
[1752512787945,0.73874921,120360.0,120350.0,0.01529977]
[1752512788413,0.86606921,120360.0,120350.0,0.01529977]
[1752512789269,0.23181486,120340.0,120330.0,0.00307366]
[1752512789474,0.44044197,120340.0,120330.0,0.00307366]
[1752512790511,0.44048197,120340.0,120330.0,0.00307366]
[1752512790721,0.41578197,120340.0,120330.0,0.00307366]
[1752512790927,0.41578197,120340.0,120330.0,0.00631366]
[1752512792134,0.41578197,120340.0,120330.0,0.00307366]
[1752512792379,0.44218197,120340.0,120330.0,0.00307366]
[1752512793277,0.31486197,120340.0,120330.0,0.00307366]
[1752512793486,0.44218197,120340.0,120330.0,0.00307366]
[1752512793904,0.73979105,120340.0,120330.0,0.00307366]
[1752512794116,0.44218197,120340.0,120330.0,0.00307366]
[1752512794598,0.86711105,120340.0,120330.0,0.00307366]
[1752512795072,0.86811105,120340.0,120330.0,0.00307366]
[1752512795286,0.74079105,120340.0,120330.0,0.00307366]
[1752512795497,0.86811105,120340.0,120330.0,0.00307366]
[1752512795710,0.8826519,120340.0,120330.0,0.00307366]
[1752512796408,0.8836519,120340.0,120330.0,0.00307366]
[1752512796618,0.96496924,120340.0,120330.0,0.00307366]
[1752512797001,0.8836519,120340.0,120330.0,0.00307366]
[1752512800260,1.2836519,120340.0,120330.0,0.00307366]
[1752512800464,1.1563319,120340.0,120330.0,0.00307366]
[1752512800865,1.2836519,120340.0,120330.0,0.00307366]
[1752512801072,1.1563319,120340.0,120330.0,0.00307366]
[1752512801276,0.69046197,120340.0,120330.0,0.0183366]
[1752512801512,0.26616197,120340.0,120330.0,0.47275568]
[1752512801719,0.39348197,120340.0,120330.0,0.49705568]
[1752512802346,0.37686288,120340.0,120330.0,0.49705568]
[1752512802546,0.39348197,120340.0,120330.0,0.49705568]
[1752512802780,0.39248197,120340.0,120330.0,0.49705568]
[1752512802987,0.39148197,120340.0,120330.0,0.49705568]
[1752512804668,0.26416197,120340.0,120330.0,0.0478266]
[1752512804873,0.39148197,120340.0,120330.0,0.0478266]
[1752512805858,0.39148197,120340.0,120330.0,0.47275568]
[1752512806048,0.26416197,120340.0,120330.0,0.47275568]
[1752512806394,0.1911212,120350.0,120340.0,0.23461513]
[1752512806622,0.39978831,120350.0,120340.0,0.67695715]
[1752512806823,0.39146691,120350.0,120340.0,0.68850666]
[1752512807032,0.39146691,120350.0,120340.0,0.68019728]
[1752512807238,0.08134711,120350.0,120340.0,1.03681609]
[1752512807440,0.23359336,120350.0,120340.0,1.03681609]
[1752512807629,0.24190238,120350.0,120340.0,1.03681609]
[1752512808382,0.24190238,120350.0,120340.0,1.03681593]
[1752512808802,0.24290238,120350.0,120340.0,1.03681593]
[1752512809006,0.24190238,120350.0,120340.0,1.03681623]
[1752512809493,0.24190238,120350.0,120340.0,1.0368181]
[1752512809762,0.2252444,120350.0,120340.0,1.0368181]
[1752512809982,0.23455336,120350.0,120340.0,1.0368181]
[1752512810438,0.23355336,120350.0,120340.0,1.0368181]
[1752512811077,0.24186238,120350.0,120340.0,1.0368181]
[1752512811578,0.26414705,120350.0,120340.0,0.38675495]
[1752512811791,0.39142705,120350.0,120340.0,0.36065495]
[1752512812860,0.39142705,120350.0,120340.0,0.78558403]
[1752512813476,0.39142705,120350.0,120340.0,0.36065495]
[1752512814982,0.39142705,120350.0,120340.0,0.78558403]
[1752512815684,0.38145926,120350.0,120340.0,0.78558403]
[1752512816552,0.27957926,120350.0,120340.0,0.01526495]
[1752512816797,0.34529038,120350.0,120340.0,0.01526495]
[1752512817015,0.38145926,120350.0,120340.0,0.01850495]
[1752512817233,0.38145926,120350.0,120340.0,0.00324]
[1752512817478,0.38145926,120350.0,120340.0,0.01852391]
[1752512817914,0.38145926,120350.0,120340.0,0.01852457]
[1752512818581,0.25417926,120350.0,120340.0,0.01852457]
[1752512818809,0.38145926,120350.0,120340.0,0.01852457]
[1752512819224,0.25417926,120350.0,120340.0,0.01852457]
[1752512819684,0.38145926,120350.0,120340.0,0.01852457]
[1752512821869,0.25417926,120350.0,120340.0,0.02055457]
[1752512822115,0.38145926,120350.0,120340.0,0.49678365]
[1752512823648,0.25417926,120350.0,120340.0,0.49678365]
[1752512823865,0.38145926,120350.0,120340.0,0.49678365]
[1752512824117,0.25417926,120350.0,120340.0,0.01852457]
[1752512824364,0.27837926,120350.0,120340.0,0.01528457]
[1752512824582,0.40565926,120350.0,120340.0,0.01528457]
[1752512824765,0.40565926,120350.0,120340.0,0.01839457]
[1752512825021,0.27837926,120350.0,120340.0,0.01839457]
[1752512825249,0.40565926,120350.0,120340.0,0.01839509]
[1752512826101,0.40565926,120350.0,120340.0,0.0183956]
[1752512827153,0.27837926,120350.0,120340.0,0.0152856]
[1752512827404,0.43125926,120350.0,120340.0,0.0152856]
[1752512827624,0.30397926,120350.0,120340.0,0.0173156]
[1752512827841,0.25417926,120350.0,120340.0,0.49425468]
[1752512828050,0.26248808,120350.0,120340.0,0.49425468]
[1752512828262,0.38145933,120350.0,120340.0,0.0693256]
[1752512828519,0.24587037,120350.0,120340.0,0.49425468]
[1752512828732,0.37315037,120350.0,120340.0,0.66876016]
[1752512829265,0.36318252,120350.0,120340.0,0.67706994]
[1752512829471,0.07802904,120350.0,120340.0,0.69368875]
[1752512829679,0.15220576,120350.0,120340.0,1.03368875]
[1752512829889,0.14389701,120350.0,120340.0,1.03368875]
[1752512830090,0.15220576,120350.0,120340.0,1.03368875]
[1752512830311,0.14389701,120350.0,120340.0,1.04199812]
[1752512830514,0.14389708,120350.0,120340.0,1.04199812]
[1752512830728,0.19116969,120360.0,120350.0,0.24320862]
[1752512830928,0.29744166,120360.0,120350.0,0.68545337]
[1752512831166,0.41641326,120360.0,120350.0,0.68857177]
[1752512831582,0.42472166,120360.0,120350.0,0.68857177]
[1752512831812,0.40810493,120360.0,120350.0,0.68857177]
[1752512832020,0.09804058,120360.0,120350.0,0.69688038]
[1752512832230,0.24293663,120360.0,120350.0,0.69688038]
[1752512832504,0.12828,120360.0,120350.0,1.03688038]
[1752512832708,0.12728,120360.0,120350.0,1.03688038]
[1752512832933,0.03322995,120370.0,120360.0,0.58159268]
[1752512833146,0.24185699,120370.0,120360.0,1.03526375]
[1752512833438,0.40801134,120370.0,120360.0,1.03526375]
[1752512833653,0.23354929,120370.0,120360.0,1.04357167]
[1752512833866,0.09796178,120370.0,120360.0,1.04357167]
[1752512834076,0.40801135,120370.0,120360.0,1.01033627]
[1752512834280,0.40801135,120370.0,120360.0,1.01864454]
[1752512834281,0.27242405,120370.0,120360.0,1.01864454]
[1752512834483,0.39970405,120370.0,120360.0,1.01864454]
[1752512834701,0.39970405,120370.0,120360.0,0.83585978]
[1752512834891,0.39970405,120370.0,120360.0,1.00202794]
[1752512835047,0.39970405,120370.0,120360.0,0.83585978]
[1752512835417,0.39970405,120370.0,120360.0,1.01133634]
[1752512835649,0.39970405,120370.0,120360.0,1.01333634]
[1752512836060,0.39970405,120370.0,120360.0,0.83885978]
[1752512836280,0.27242405,120370.0,120360.0,0.87227884]
[1752512836511,0.39966405,120370.0,120360.0,1.04675533]
[1752512836756,0.27242405,120370.0,120360.0,1.0550636]
[1752512836932,0.39135599,120370.0,120360.0,1.07167965]
[1752512837191,0.40797107,120370.0,120360.0,1.06337173]
[1752512837612,0.39966356,120370.0,120360.0,1.07167986]
[1752512837760,0.40797127,120370.0,120360.0,1.0633718]
[1752512837966,0.40797127,120370.0,120360.0,1.07167993]
[1752512838342,0.39966343,120370.0,120360.0,1.07167945]
[1752512838544,0.39966343,120370.0,120360.0,0.64675037]
[1752512838749,0.39966391,120370.0,120360.0,0.86397044]
[1752512838967,0.27242391,120370.0,120360.0,1.03844687]
[1752512839174,0.08965427,120370.0,120360.0,1.06337125]
[1752512839405,0.22520164,120370.0,120360.0,1.06337125]
[1752512840024,0.3996635,120370.0,120360.0,1.06337125]
[1752512840252,0.40797121,120370.0,120360.0,1.0467552]
[1752512840459,0.28073121,120370.0,120360.0,1.0467552]
[1752512840668,0.2724235,120370.0,120360.0,1.05506326]
[1752512840870,0.28073107,120370.0,120360.0,1.05506326]
[1752512841074,0.28073107,120370.0,120360.0,1.05506333]
[1752512841302,0.40797107,120370.0,120360.0,1.07167938]
[1752512841482,0.09796164,120370.0,120360.0,1.07167897]
[1752512841658,0.22520164,120370.0,120360.0,1.07167897]
[1752512841873,0.23350915,120370.0,120360.0,1.07167897]
[1752512842069,0.09796164,120370.0,120360.0,1.07167897]
[1752512842271,0.21689441,120370.0,120360.0,1.07167897]
[1752512842805,0.21689441,120370.0,120360.0,1.07166716]
[1752512843222,0.2252015,120370.0,120360.0,1.07166716]
[1752512843425,0.2252015,120370.0,120360.0,1.07166728]
[1752512843644,0.43960658,120390.0,120380.0,0.17444757]
[1752512843859,0.64819369,120390.0,120380.0,0.21955849]
[1752512844064,0.64819369,120390.0,120380.0,0.64448757]
[1752512844294,0.64819369,120390.0,120380.0,0.47004]
[1752512844511,0.67339369,120390.0,120380.0,0.01838092]
[1752512844858,0.67439369,120390.0,120380.0,0.01843074]
[1752512845054,0.58448257,120390.0,120380.0,0.02046074]
[1752512846034,0.58440104,120390.0,120380.0,0.02046074]
[1752512846770,0.57587233,120390.0,120380.0,0.02046074]
[1752512846977,0.57587233,120390.0,120380.0,0.01843074]
[1752512847387,0.44863233,120390.0,120380.0,0.44538982]
[1752512847565,0.57587233,120390.0,120380.0,0.44538982]
[1752512847802,0.57587233,120390.0,120380.0,0.02046074]
[1752512848019,0.57587233,120390.0,120380.0,0.44538982]
[1752512848433,0.44863233,120390.0,120380.0,0.44538982]
[1752512848612,0.0269181,120390.0,120380.0,1.02775061]
[1752512848792,0.32028444,120390.0,120380.0,1.01944407]
[1752512848989,0.2013507,120390.0,120380.0,1.01944407]
[1752512849193,0.31197907,120390.0,120380.0,0.98623732]
[1752512849403,0.30367301,120390.0,120380.0,0.95983732]
[1752512849609,0.30367301,120390.0,120380.0,0.97645095]
[1752512849791,0.30367301,120390.0,120380.0,1.00285095]
[1752512849990,0.30267301,120390.0,120380.0,1.01115763]
[1752512850198,0.31097907,120390.0,120380.0,1.04436417]
[1752512850395,0.1531581,120390.0,120380.0,1.04436417]
[1752512850763,0.14385191,120390.0,120380.0,1.04436417]
[1752512850983,0.12724,120390.0,120380.0,1.04436417]
[1752512851204,0.01661163,120390.0,120380.0,1.04436417]
[1752512851406,0.13554571,120390.0,120380.0,1.04436417]
[1752512851573,0.12724,120390.0,120380.0,1.04434628]
[1752512851876,0.14385163,120390.0,120380.0,1.04434628]
[1752512852099,0.04153007,120390.0,120380.0,1.04434591]
[1752512852305,0.16877007,120390.0,120380.0,1.04434598]
[1752512852481,0.20763979,120400.0,120390.0,0.58234506]
[1752512852642,0.40792181,120400.0,120390.0,1.01629094]
[1752512853001,0.40792181,120400.0,120390.0,1.03601306]
[1752512853223,0.28068181,120400.0,120390.0,1.03601306]
[1752512853427,0.40788181,120400.0,120390.0,1.03601306]
[1752512853633,0.40888181,120400.0,120390.0,1.03601306]
[1752512853867,0.40888181,120400.0,120390.0,1.00280707]
[1752512854106,0.40985961,120400.0,120390.0,1.01111313]
[1752512854579,0.40985961,120400.0,120390.0,1.00280707]
[1752512854999,0.40155424,120400.0,120390.0,1.00280707]
[1752512855380,0.40055424,120400.0,120390.0,1.00280707]
[1752512855796,0.40055424,120400.0,120390.0,1.01111313]
[1752512855998,0.39955424,120400.0,120390.0,1.00280707]
[1752512856728,0.39955424,120400.0,120390.0,0.99450094]
[1752512856927,0.39955424,120400.0,120390.0,1.00280707]
[1752512857336,0.39955424,120400.0,120390.0,1.01111313]
[1752512858000,0.39955424,120400.0,120390.0,1.00280707]
[1752512858207,0.11454624,120400.0,120390.0,1.04391898]
[1752512858412,0.24174624,120400.0,120390.0,1.04391898]
[1752512858823,0.25005126,120400.0,120390.0,1.04391898]
[1752512859857,0.23178217,120400.0,120390.0,1.04391898]
[1752512860097,0.24008767,120400.0,120390.0,1.04391898]
[1752512860298,0.03319865,120400.0,120390.0,1.04391898]
[1752512860509,0.16039865,120400.0,120390.0,1.04393017]
[1752512860711,0.04150415,120400.0,120390.0,1.04393017]
[1752512860916,0.17700972,120400.0,120390.0,1.04393017]
[1752512861128,0.17700972,120400.0,120390.0,1.04392782]
[1752512861354,0.33481765,120400.0,120390.0,1.03562197]
[1752512861564,0.32651242,120400.0,120390.0,0.98620359]
[1752512861775,0.32651242,120400.0,120390.0,0.99450978]
[1752512862008,0.32651242,120400.0,120390.0,1.00281591]
[1752512862222,0.32651242,120400.0,120390.0,0.99450978]
[1752512862676,0.19931242,120400.0,120390.0,1.0111219]
[1752512862821,0.32651242,120400.0,120390.0,1.00281591]
[1752512863424,0.32651242,120400.0,120390.0,1.01112197]
[1752512863657,0.19889242,120400.0,120390.0,0.81177058]
[1752512863857,0.31778712,120400.0,120390.0,0.81177058]
[1752512864361,0.31778712,120400.0,120390.0,0.98620359]
[1752512864985,0.31778712,120400.0,120390.0,0.98620366]
[1752512865221,0.19058712,120400.0,120390.0,0.81177058]
[1752512865461,0.30948162,120400.0,120390.0,0.81177058]
[1752512865925,0.30948162,120400.0,120390.0,0.82007684]
[1752512866154,0.30948162,120400.0,120390.0,0.98620359]
[1752512866435,0.30948162,120400.0,120390.0,0.82006921]
[1752512867122,0.30948162,120400.0,120390.0,0.99450222]
[1752512867561,0.30948162,120400.0,120390.0,0.82006921]
[1752512867772,0.30948162,120400.0,120390.0,0.99450222]
[1752512867967,0.31778699,120400.0,120390.0,0.99450222]
[1752512868120,0.32609208,120400.0,120390.0,1.00280835]
[1752512868312,0.33435772,120400.0,120390.0,1.00280835]
[1752512868520,0.33435772,120400.0,120390.0,1.00280841]
[1752512868967,0.33435772,120400.0,120390.0,0.99450222]
[1752512869124,0.33435772,120400.0,120390.0,1.00514842]
[1752512869330,0.33435772,120400.0,120390.0,1.02039862]
[1752512869525,0.33435772,120400.0,120390.0,1.02870481]
[1752512869744,0.31608982,120400.0,120390.0,0.81175928]
[1752512869969,0.38913156,120400.0,120390.0,0.3868302]
[1752512870181,0.38913156,120400.0,120390.0,0.78535928]
[1752512870550,0.41343156,120400.0,120390.0,0.78535928]
[1752512870771,0.38913156,120400.0,120390.0,0.78535928]
[1752512871207,0.38913156,120400.0,120390.0,0.81125928]
[1752512871817,0.38082606,120400.0,120390.0,0.81125928]
[1752512872145,0.38082606,120400.0,120390.0,0.81956561]
[1752512872351,0.38082606,120400.0,120390.0,0.81125928]
[1752512873446,0.25366606,120400.0,120390.0,0.81125928]
[1752512873652,0.38082606,120400.0,120390.0,0.78535928]
[1752512873862,0.38899975,120400.0,120390.0,0.78535928]
[1752512875014,0.41379975,120400.0,120390.0,0.78536782]
[1752512875637,0.38899975,120400.0,120390.0,0.78536782]
[1752512875875,0.41439975,120400.0,120390.0,0.78536782]
[1752512876308,0.38899975,120400.0,120390.0,0.78536782]
[1752512877885,0.38899975,120400.0,120390.0,0.77010908]
[1752512878091,0.38899975,120400.0,120390.0,0.78536866]
[1752512878290,0.26183975,120400.0,120390.0,0.78536866]